bitfinex-derivatives/quotes_ETHF0:USTF0_20251210
["timestamp","ask_amount","ask_price","bid_price","bid_amount"]
[1765332191882,4.89838469,3298.4,3298.3,2.0457]
[1765332192074,5.92718469,3298.4,3298.3,2.0457]
[1765332192780,0.9945,3298.0,3297.9,2.05388776]
[1765332192980,2.6593,3298.0,3297.9,1.06538776]
[1765332193177,2.6593,3298.0,3297.9,2.05388776]
[1765332194079,2.6593,3298.0,3297.9,0.00818776]
[1765332194880,5.2311,3298.4,3297.9,0.00818776]
[1765332195178,5.2311,3298.4,3298.3,1.0572]
[1765332195375,2.6593,3298.0,3297.9,2.70184132]
[1765332196078,3.2078,3298.4,3297.9,2.70184132]
[1765332196284,5.2311,3298.4,3298.3,1.0572]
[1765332196484,5.927013,3298.4,3298.3,1.0572]
[1765332196882,5.927013,3298.4,3298.3,2.0457]
[1765332197190,4.20532628,3298.8,3298.7,2.0457]
[1765332197380,4.90130288,3298.8,3298.7,2.0457]
[1765332197581,1.69350288,3298.8,3298.7,2.0457]
[1765332197781,0.99752628,3298.8,3298.7,2.0457]
[1765332197983,2.02632628,3298.8,3298.7,1.0572]
[1765332198184,2.7224025,3298.8,3298.7,1.0572]
[1765332198382,2.72240689,3298.8,3298.7,2.0457]
[1765332198688,2.02632628,3298.8,3298.7,2.0457]
[1765332199389,2.72234868,3298.8,3298.7,2.0457]
[1765332199589,2.02632628,3298.8,3298.7,2.0457]
[1765332200193,2.7222687,3298.8,3298.7,2.0457]
[1765332202291,1.6934687,3298.8,3298.7,2.0457]
[1765332202589,0.00302628,3298.8,3298.7,2.0457]
[1765332209801,0.00454539,3299.1,3299.0,2.6817]
[1765332210098,0.00454539,3299.1,3299.0,5.8895]
[1765332210801,0.00730072,3299.1,3299.0,5.8895]
[1765332213595,0.00730072,3299.1,3299.0,5.4805]
[1765332214099,1.16500072,3299.1,3299.0,5.4805]
[1765332214299,0.00730072,3299.1,3299.0,5.4805]
[1765332214501,2.35370072,3299.1,3299.0,5.4805]
[1765332214903,2.35370072,3299.1,3299.0,4.3184]
[1765332215107,2.35370072,3299.1,3299.0,3.2078]
[1765332215710,2.3464,3298.7,3298.6,4.3184]
[1765332216508,3.0497,3299.0,3298.9,2.2727]
[1765332216705,3.0497,3299.0,3298.9,1.1106]
[1765332216905,3.0497,3299.0,3298.9,2.2727]
[1765332217103,0.00730072,3299.1,3299.0,2.2727]
[1765332217104,2.35370072,3299.1,3299.0,2.2727]
[1765332218009,2.35370072,3299.1,3299.0,1.1106]
[1765332218511,2.35370072,3299.1,3299.0,2.2727]
[1765332220212,1.16500072,3299.1,3299.0,2.2727]
[1765332220413,2.35370072,3299.1,3299.0,2.2727]
[1765332220707,2.35370072,3299.1,3298.6,3.2078]
[1765332220918,1.1577,3298.7,3298.6,5.4805]
[1765332221615,2.3464,3298.7,3298.6,1.1106]
[1765332223213,1.1577,3298.7,3298.6,2.2727]
[1765332223516,2.3464,3298.7,3298.6,2.2727]
[1765332223720,2.3464,3298.7,3298.6,1.1106]
[1765332223910,2.3464,3298.7,3298.6,2.2727]
[1765332224418,2.3464,3298.7,3298.6,1.1106]
[1765332224609,1.1577,3298.3,3298.2,5.4805]
[1765332225114,2.3464,3298.3,3298.2,3.2078]
[1765332226315,3.04303883,3298.3,3298.2,3.2078]
[1765332226612,1.1577,3298.0,3297.9,2.28088776]
[1765332226816,1.861,3298.0,3297.9,2.28088776]
[1765332227015,0.7033,3298.5,3297.9,2.28088776]
[1765332227215,1.65900772,3298.5,3297.9,2.28088776]
[1765332227516,3.04283531,3298.4,3298.3,1.1106]
[1765332228429,1.1577,3298.0,3297.9,2.28088776]
[1765332228615,1.861,3298.0,3297.9,2.28088776]
[1765332229014,3.0497,3298.0,3297.9,2.28088776]
[1765332230420,1.861,3298.0,3297.9,2.28088776]
[1765332230922,0.7033,3298.5,3297.9,2.28088776]
[1765332231122,1.39926489,3298.5,3297.9,2.28088776]
[1765332231318,3.74566489,3298.5,3298.4,2.2727]
[1765332231817,3.74566489,3298.5,3298.4,1.1106]
[1765332232426,5.5542,3298.6,3298.5,2.2727]
[1765332232727,6.2499899,3298.6,3298.5,2.2727]
[1765332232918,6.2499899,3298.6,3298.5,1.1106]
[1765332233113,0.6385,3298.5,3297.9,0.00818776]
[1765332233528,1.33433267,3298.5,3297.9,0.00818776]
[1765332234027,3.46983267,3298.5,3298.4,0.9934]
[1765332234325,2.774,3298.5,3298.4,0.9934]
[1765332234526,3.46992834,3298.5,3298.4,0.9934]
[1765332235324,2.774,3298.5,3297.9,0.00818776]
[1765332235715,2.774,3298.5,3298.4,0.9934]
[1765332236226,2.774,3298.5,3297.9,0.00818776]
[1765332237724,2.8388,3299.0,3298.9,0.9934]
[1765332237925,3.53486387,3299.0,3298.9,0.9934]
[1765332238225,3.53486387,3299.0,3298.3,3.2078]
[1765332238429,0.69606387,3298.9,3298.3,3.2078]
[1765332238722,0.7033,3299.0,3298.3,3.2078]
[1765332239426,1.39936387,3299.0,3298.3,3.2078]
[1765332239628,2.83156387,3298.9,3298.8,0.9934]
[1765332241428,2.1355,3298.4,3298.3,4.2012]
[1765332242233,2.1355,3298.4,3298.3,3.2078]
[1765332243128,2.83353331,3298.4,3298.3,3.2078]
[1765332244232,2.83353331,3298.4,3297.9,0.00818776]
[1765332244233,2.774,3298.0,3297.9,1.00158776]
[1765332244730,2.774,3298.0,3297.9,2.05668776]
[1765332245235,1.7114,3298.0,3297.9,2.05668776]
[1765332245430,2.774,3298.0,3297.9,2.05668776]
[1765332245930,2.774,3298.0,3297.9,0.00818776]
[1765332246133,3.47268696,3298.0,3297.9,0.00818776]
[1765332246323,3.73229536,3298.0,3297.9,0.00818776]
[1765332247030,2.774,3297.5,3297.4,3.2078]
[1765332247232,3.47225734,3297.5,3297.0,3.2078]
[1765332247533,3.47225734,3297.5,3297.0,0.9934]
[1765332247534,2.1355,3297.1,3297.0,0.9934]
[1765332248033,2.1355,3297.1,3297.0,0.99724906]
[1765332248834,2.1355,3297.1,3297.0,0.00384906]
[1765332249128,2.83295954,3297.1,3297.0,0.99724906]
[1765332249334,2.83295954,3297.1,3297.0,0.00384906]
[1765332250334,2.1355,3297.1,3297.0,0.00384906]
[1765332250939,2.83185426,3297.1,3297.0,0.00384906]
[1765332252230,2.1355,3297.1,3297.0,0.00384906]
[1765332254137,2.1355,3297.1,3297.0,0.96034906]
[1765332254539,2.1355,3297.1,3297.0,1.89454906]
[1765332254731,2.1355,3297.1,3297.0,0.96034906]
[1765332254931,2.1355,3297.1,3297.0,0.00384906]
[1765332255139,5.3433,3297.1,3297.0,0.00384906]
[1765332256238,1.906,3296.3,3296.2,4.1643]
[1765332256940,1.906,3295.7,3295.6,3.2078]
[1765332257142,1.90965737,3295.7,3295.6,3.21032288]
[1765332257836,1.90965737,3295.7,3295.6,4.16682288]
[1765332258532,0.92815737,3295.7,3295.6,5.10102288]
[1765332258734,0.00365737,3295.7,3295.6,5.10102288]
[1765332260337,1.90965737,3295.7,3295.6,5.10102288]
[1765332260543,1.90965737,3295.7,3295.6,3.21032288]
[1765332261739,0.00365737,3295.7,3295.6,5.10102288]
[1765332261946,1.90965737,3295.7,3295.6,5.10102288]
[1765332263037,0.92815737,3295.7,3295.6,5.10102288]
[1765332263443,1.90965737,3295.7,3295.6,5.10102288]
[1765332263636,1.90965737,3295.7,3295.6,4.16682288]
[1765332263842,1.90965737,3295.7,3295.6,5.12632288]
[1765332264044,0.00365737,3295.7,3295.6,5.12632288]
[1765332266545,1.5324,3296.5,3296.4,1.8463]
[1765332267045,2.4236,3296.5,3296.4,1.8463]
[1765332267343,1.5324,3296.5,3296.4,1.8463]
[1765332267540,2.42574652,3296.5,3296.4,1.8463]
[1765332269239,0.00214652,3296.5,3296.4,1.8463]
[1765332269844,2.41414652,3296.5,3296.4,1.8463]
[1765332270045,0.00214652,3296.5,3296.4,1.8463]
[1765332276645,1.8313,3296.2,3296.1,1.8463]
[1765332276847,1.8313,3296.2,3296.1,5.0541]
[1765332277754,0.9401,3296.2,3296.1,5.0541]
[1765332278447,1.63792033,3296.2,3296.1,5.0541]
[1765332279155,0.9401,3295.8,3295.7,5.0541]
[1765332279750,1.8313,3295.8,3295.7,3.2078]
[1765332280057,1.8313,3295.8,3295.7,4.0946]
[1765332280556,2.412,3296.0,3295.9,1.8463]
[1765332280746,3.79064652,3296.5,3295.9,1.8463]
[1765332281054,3.79064652,3296.5,3295.7,3.2078]
[1765332281055,0.69792906,3296.4,3295.7,3.2078]
[1765332282659,0.5807,3296.0,3295.6,0.00252288]
[1765332282955,1.8313,3295.7,3295.6,0.00252288]
[1765332283150,2.52922906,3295.7,3295.6,0.00252288]
[1765332283962,2.52922906,3295.7,3295.6,0.88932288]
[1765332284361,2.52922906,3295.7,3295.6,0.00252288]
[1765332284860,2.52922906,3295.7,3295.6,1.84882288]
[1765332285164,0.69792906,3295.7,3295.6,1.84882288]
[1765332285361,2.08974417,3295.9,3295.8,1.8463]
[1765332285563,2.78767323,3295.9,3295.8,0.8868]
[1765332285761,0.69792906,3295.9,3295.8,1.8463]
[1765332286063,0.69811107,3296.4,3295.8,1.8463]
[1765332286264,0.9401,3295.9,3295.8,1.8463]
[1765332287260,0.9401,3295.9,3295.7,3.2078]
[1765332287261,2.412,3296.0,3295.9,0.8868]
[1765332287461,2.412,3296.0,3295.7,3.2078]
[1765332287462,1.8313,3295.8,3295.7,4.0946]
[1765332287763,1.8313,3295.8,3295.7,5.0541]
[1765332288065,1.8313,3295.8,3295.7,3.2078]
[1765332288264,1.8313,3295.8,3295.7,4.0946]
[1765332288453,0.9401,3295.8,3295.7,5.0541]
[1765332289160,1.8313,3295.8,3295.7,5.0541]
[1765332289358,1.8313,3295.8,3295.7,3.2078]
[1765332290462,1.8313,3295.8,3295.7,5.0541]
[1765332292162,1.8313,3295.8,3295.7,4.0946]
[1765332292664,1.8313,3295.8,3295.7,5.0541]
[1765332293566,2.2482,3296.0,3295.9,0.8674]
[1765332293763,2.9458454,3296.0,3295.9,0.8674]
[1765332293968,1.6675,3295.8,3295.7,4.9575]
[1765332295372,2.2482,3296.0,3295.9,0.8674]
[1765332295564,2.94577816,3296.0,3295.9,0.8674]
[1765332297474,2.2482,3296.0,3295.9,1.7497]
[1765332297971,2.2482,3296.0,3295.9,0.8674]
[1765332299574,1.6675,3295.8,3295.7,4.9575]
[1765332299874,1.6675,3295.8,3295.7,3.2078]
[1765332300372,1.6675,3295.7,3295.6,0.00252288]
[1765332300961,1.6675,3295.7,3295.6,0.86992288]
[1765332301170,1.6675,3295.7,3295.6,0.00252288]
[1765332301572,2.36534069,3295.7,3295.6,0.00252288]
[1765332302076,1.6675,3295.7,3295.6,0.00252288]
[1765332302372,2.3639364,3295.7,3295.6,0.00252288]
[1765332304169,2.62237012,3295.7,3295.6,0.00252288]
[1765332304574,2.3639364,3295.7,3295.6,0.00252288]
[1765332305171,2.62242001,3295.7,3295.6,0.00252288]
[1765332311576,2.62242001,3295.7,3295.6,0.86992288]
[1765332312281,2.62242001,3295.7,3295.6,0.00252288]
[1765332314383,0.95492001,3295.7,3295.6,1.52502288]
[1765332314580,1.86688361,3295.7,3295.6,1.52502288]
[1765332314781,2.56332001,3295.7,3295.6,0.76902288]
[1765332315781,2.56332001,3295.7,3295.6,1.52502288]
[1765332315976,0.95492001,3295.7,3295.6,1.52502288]
[1765332316181,0.69792685,3295.9,3295.6,0.00252288]
[1765332316384,1.6084,3295.9,3295.8,0.7665]
[1765332316582,2.30632685,3295.9,3295.8,0.7665]
[1765332316784,2.30632685,3295.9,3295.8,1.5225]
[1765332317083,1.50472685,3295.9,3295.8,1.5225]
[1765332317278,0.69792685,3295.9,3295.8,1.5225]
[1765332317480,3.79064652,3296.5,3296.4,1.5225]
[1765332317786,0.00214652,3296.5,3296.4,1.5225]
[1765332319290,0.00214652,3296.5,3296.4,7.5225]
[1765332319687,1.86730812,3297.3,3297.2,1.5225]
[1765332320192,1.6084,3297.3,3297.2,1.5225]
[1765332320586,1.61227105,3297.3,3297.2,0.7665]
[1765332320784,1.87104134,3297.3,3297.2,0.7665]
[1765332320985,1.87104134,3297.3,3297.2,1.5225]
[1765332321186,1.61227105,3297.3,3297.2,1.5225]
[1765332321485,0.00387105,3297.3,3297.2,1.5225]
[1765332322084,3.2078,3298.2,3297.2,9.2078]
[1765332322277,3.2078,3298.2,3297.9,1.5225]
[1765332322896,1.2801,3298.0,3297.9,1.5225]
[1765332323189,0.47697986,3298.0,3297.9,1.5225]
[1765332323793,1.28377986,3298.0,3297.9,1.5225]
[1765332325196,2.07047986,3298.0,3297.9,1.5225]
[1765332325391,1.5935,3297.7,3297.6,1.51444539]
[1765332325694,2.07047986,3298.0,3297.9,0.7442]
[1765332325892,2.07047986,3298.0,3297.9,1.5099]
[1765332326290,0.47697986,3298.0,3297.9,1.5099]
[1765332326695,1.27367986,3298.0,3297.9,1.5099]
[1765332327389,1.27367986,3298.0,3297.6,3.95654539]
[1765332327390,1.5935,3297.7,3297.6,3.95654539]
[1765332327888,1.5935,3297.7,3297.6,0.00454539]
[1765332328092,1.5935,3297.2,3297.1,3.2078]
[1765332328891,1.5935,3297.2,3297.1,4.7177]
[1765332329197,1.5935,3297.2,3297.1,3.952]
[1765332329390,1.5935,3297.2,3297.1,3.2078]
[1765332329586,0.7967,3296.8,3296.7,4.7177]
[1765332329792,1.5935,3296.8,3296.7,4.7177]
[1765332331399,0.7967,3296.8,3296.7,4.7177]
[1765332332589,1.5935,3296.8,3296.7,3.2078]
[1765332332889,1.5935,3296.8,3296.7,3.952]
[1765332333091,1.5935,3296.8,3296.0,0.2286]
[1765332333092,1.5935,3296.4,3296.3,3.2078]
[1765332333293,2.0372,3296.0,3295.9,3.2078]
[1765332333501,2.0372,3296.0,3295.9,3.952]
[1765332333698,2.0372,3296.0,3295.9,4.7177]
[1765332334010,1.2404,3296.0,3295.9,4.7177]
[1765332334311,2.0372,3296.0,3295.9,4.7177]
[1765332334806,1.2404,3296.0,3295.9,4.7177]
[1765332335012,0.4437,3296.0,3295.9,4.7177]
[1765332335511,1.2404,3296.0,3295.9,4.7177]
[1765332335711,2.0372,3296.0,3295.9,4.7177]
[1765332335913,2.0372,3296.0,3295.9,3.952]
[1765332336111,2.0372,3296.0,3295.9,4.7177]
[1765332336613,2.0372,3296.5,3296.4,0.7442]
[1765332337414,2.0372,3296.5,3295.9,3.2078]
[1765332337608,2.0372,3296.0,3295.9,3.952]
[1765332337808,2.0372,3296.0,3295.9,4.7177]
[1765332338008,1.2404,3296.0,3295.9,4.7177]
[1765332338208,0.4437,3296.0,3295.9,4.7177]
[1765332338508,1.2404,3296.0,3295.9,4.7177]
[1765332339112,0.4437,3296.0,3295.9,4.7177]
[1765332339309,2.0372,3296.0,3295.9,4.7177]
[1765332341010,2.0372,3296.0,3295.9,3.952]
[1765332341416,2.0372,3296.0,3295.9,4.7177]
[1765332343017,1.2404,3296.0,3295.9,4.7177]
[1765332343416,2.0372,3296.0,3295.9,3.2078]
[1765332343720,1.5935,3295.7,3295.6,0.74672288]
[1765332344414,1.5935,3295.7,3295.6,0.00252288]
[1765332347214,1.5935,3295.7,3295.0,3.2078]
[1765332347418,3.80318,3296.0,3295.0,3.2078]
[1765332347419,1.5935,3295.1,3295.0,3.2078]
[1765332348321,1.5935,3294.7,3294.6,4.7177]
[1765332348509,1.5935,3294.7,3294.6,4.72097481]
[1765332351224,1.5935,3294.7,3294.6,3.21107481]
[1765332352716,1.5935,3294.7,3294.6,0.00327481]
[1765332353616,1.4293,3294.3,3294.2,3.2078]
[1765332354421,1.8631,3293.5,3293.4,3.2078]
[1765332354619,1.8631,3293.5,3293.4,3.21025186]
[1765332354820,1.8631,3294.0,3293.9,0.7409]
[1765332355125,1.8631,3294.0,3293.9,3.9487]
[1765332355828,0.4338,3294.0,3293.9,4.6607]
[1765332357126,0.4338,3294.5,3293.9,4.6607]
[1765332357529,1.4293,3294.4,3294.3,3.9487]
[1765332358326,1.4293,3294.4,3294.3,4.6607]
[1765332358518,1.1781,3294.5,3294.4,1.4529]
[1765332358722,1.87755297,3295.0,3294.9,0.7409]
[1765332360526,1.19255297,3295.0,3294.9,1.4529]
[1765332361629,0.44825297,3295.0,3294.9,1.4529]
[1765332361830,1.19255297,3295.0,3294.9,1.4529]
[1765332362024,0.44825297,3295.0,3294.9,1.4529]
[1765332362223,0.00455297,3295.0,3294.9,1.4529]
[1765332362527,12.011,3295.9,3294.9,1.4529]
[1765332362528,1.8631,3296.0,3295.9,0.7409]
[1765332362726,1.1781,3296.0,3295.9,1.4529]
[1765332362924,1.8631,3296.0,3295.9,1.4529]
[1765332363121,1.8631,3296.0,3295.9,0.7409]
[1765332363626,1.86669055,3296.0,3295.9,0.74365046]
[1765332364228,0.00359055,3296.0,3295.9,1.45565046]
[1765332364427,0.00359055,3296.0,3295.9,4.66345046]
[1765332364627,0.00455297,3296.3,3296.2,1.4529]
[1765332365629,0.00848826,3296.3,3296.2,1.4529]
[1765332366027,0.4338,3297.0,3296.2,1.4529]
[1765332366336,1.8519,3297.0,3296.9,0.7409]
[1765332366835,1.1781,3297.0,3296.9,1.4837]
[1765332367032,1.1781,3297.0,3296.6,3.2078]
[1765332367033,1.8214,3297.5,3297.4,0.6761]
[1765332367537,1.82520273,3297.5,3297.4,0.6761]
[1765332367730,1.15140273,3297.5,3297.4,1.4189]
[1765332368036,0.43760273,3297.5,3297.4,1.4189]
[1765332368438,0.43760273,3297.5,3297.4,4.6267]
[1765332368439,0.00380273,3297.5,3297.4,4.6267]
[1765332368829,0.00455297,3297.8,3297.7,1.4189]
[1765332369835,0.00668243,3297.8,3297.7,1.4189]
[1765332371535,0.4039,3299.0,3297.7,1.4189]
[1765332371840,0.4039,3299.0,3298.4,3.2078]
[1765332372741,0.4039,3298.5,3298.4,4.63035234]
[1765332373436,0.41092516,3299.0,3298.4,4.63035234]
[1765332373635,1.12472516,3299.0,3298.9,1.4189]
[1765332374237,1.79852516,3299.0,3298.4,3.21145234]
[1765332374440,0.4039,3298.5,3298.4,3.21145234]
[1765332374646,1.7915,3298.5,3298.4,3.88755234]
[1765332374836,1.7915,3298.5,3298.4,0.00365234]
[1765332375142,1.7915,3298.5,3297.0,2.1781]
[1765332375143,1.3876,3297.7,3297.6,3.2078]
[1765332376037,1.3876,3297.7,3297.6,3.21040933]
[1765332379842,0.7138,3297.7,3297.6,3.88650933]
[1765332380043,1.3876,3297.7,3297.6,3.88650933]
[1765332380240,1.3876,3297.7,3297.6,3.21040933]
[1765332381944,1.3876,3297.7,3297.6,0.67870933]
[1765332382648,1.3876,3297.7,3297.6,0.00260933]
[1765332383549,1.3876,3297.7,3297.6,1.36180933]
[1765332383847,1.3876,3297.7,3297.6,0.67870933]
[1765332384345,1.3876,3297.7,3297.6,0.00260933]
[1765332385444,4.5954,3297.7,3297.6,0.00260933]
[1765332385644,1.8544,3297.5,3296.4,3.2078]
[1765332385839,1.8544,3296.5,3296.4,3.9172]
[1765332386444,1.8544,3296.5,3296.4,4.6003]
[1765332386647,1.85830921,3296.5,3296.4,4.60395492]
[1765332387243,1.16910921,3296.5,3296.4,4.60395492]
[1765332388039,1.85830921,3296.5,3296.4,4.60395492]
[1765332388245,1.85830921,3296.5,3296.4,3.92085492]
[1765332388442,1.85830921,3296.5,3296.4,3.21145492]
[1765332390447,1.85830921,3296.5,3296.4,3.92085492]
[1765332391252,1.85830921,3296.5,3296.4,4.60395492]
[1765332392044,1.16910921,3296.5,3296.4,4.60395492]
[1765332392245,1.85830921,3296.5,3296.4,4.60395492]
[1765332392452,1.85830921,3296.5,3296.4,3.21145492]
[1765332392848,1.85830921,3296.5,3296.4,0.00365492]
[1765332394147,2.54567137,3296.5,3296.4,0.00365492]
[1765332395949,1.4189,3296.2,3296.1,0.00455297]
[1765332396152,1.8544,3295.5,3295.4,3.9172]
[1765332396453,1.8544,3295.5,3295.4,4.6003]
[1765332397054,1.8544,3295.5,3295.4,4.60381252]
[1765332397653,1.8544,3295.5,3295.4,3.21131252]
[1765332398948,1.1652,3295.5,3295.4,4.60381252]
[1765332399147,0.4355,3295.5,3295.4,3.21131252]
[1765332399356,1.1652,3295.5,3295.4,4.60381252]
[1765332399555,0.4355,3296.0,3295.9,0.7094]
[1765332399556,1.8544,3296.0,3295.9,0.7094]
[1765332399753,0.4355,3296.0,3295.9,1.3925]
[1765332400655,1.8544,3296.0,3295.9,1.3925]
[1765332401150,1.8544,3296.0,3295.9,0.7094]
[1765332401550,1.8544,3296.0,3295.9,1.3925]
[1765332401955,0.4355,3296.0,3295.9,1.3925]
[1765332402155,0.4355,3296.0,3295.5,0.1901]
[1765332402156,3.2078,3296.2,3296.1,1.3925]
[1765332402357,3.9375,3296.2,3296.1,1.3925]
[1765332402654,4.6267,3296.2,3295.4,3.21131252]
[1765332404054,1.1652,3295.5,3295.4,4.60381252]
[1765332404351,1.8544,3295.5,3295.4,4.60381252]
[1765332404657,1.1652,3295.5,3295.4,4.60381252]
[1765332404843,0.4355,3295.5,3295.4,4.60381252]
[1765332405357,0.4355,3296.0,3295.9,1.3925]
[1765332405358,1.8544,3296.0,3295.9,1.3925]
[1765332405952,1.8544,3296.0,3295.4,3.21131252]
[1765332406256,1.8544,3295.5,3295.4,3.21131252]
[1765332406454,1.8544,3295.5,3295.4,3.92071252]
[1765332406654,1.8544,3295.5,3295.4,4.60381252]
[1765332407059,1.8544,3295.5,3295.4,3.21131252]
[1765332407851,0.4355,3295.5,3295.4,4.60381252]
[1765332408253,1.1652,3295.5,3295.4,4.60381252]
[1765332408445,0.4355,3295.5,3295.4,4.60381252]
[1765332409151,1.1652,3295.5,3295.4,4.60381252]
[1765332410054,0.4355,3295.5,3295.4,4.60381252]
[1765332412562,3.9375,3295.8,3295.7,1.3925]
[1765332412760,1.1652,3295.5,3295.4,4.60381252]
[1765332412959,0.4355,3295.5,3295.4,4.60381252]
[1765332413162,1.8053,3295.5,3295.4,4.60381252]
[1765332414962,1.8053,3295.5,3295.4,4.65351252]
[1765332415662,0.4355,3295.5,3295.4,4.65351252]
[1765332416161,1.1174,3295.5,3295.4,4.65351252]
[1765332416361,3.8897,3295.8,3295.7,1.4422]
[1765332416562,4.57909091,3295.8,3295.7,1.4422]
[1765332416762,5.26699091,3295.8,3295.7,0.7324]
[1765332418966,2.05919091,3295.8,3295.7,0.7324]
[1765332419467,2.05919091,3295.8,3295.7,1.4422]
[1765332420165,0.68939091,3295.8,3295.7,1.4422]
[1765332420471,1.8053,3296.0,3295.9,1.4422]
[1765332420768,0.43940921,3296.5,3296.4,0.7324]
[1765332420769,1.80920921,3296.5,3296.4,0.7324]
[1765332420969,2.75912092,3296.5,3295.8,3.2078]
[1765332421161,2.31971171,3296.4,3296.3,0.7324]
[1765332421867,0.6819,3295.9,3295.8,4.65]
[1765332422063,1.3698,3295.9,3295.8,3.9402]
[1765332422263,2.06110426,3295.9,3295.8,3.9402]
[1765332422568,2.06110426,3295.9,3295.8,4.65]
[1765332422762,2.06110426,3295.9,3295.8,3.2078]
[1765332422963,2.32077134,3295.9,3295.8,3.2078]
[1765332423269,1.3698,3295.6,3295.5,3.9402]
[1765332423469,2.06110426,3295.6,3295.5,3.9402]
[1765332424269,2.06133541,3295.6,3295.5,3.9402]
[1765332424463,0.4413,3296.0,3295.5,4.65]
[1765332424660,1.1232,3296.0,3295.9,1.4422]
[1765332424859,2.0745604,3296.0,3295.9,1.4422]
[1765332425162,2.7624604,3296.0,3295.9,0.7324]
[1765332425570,0.6819,3295.6,3295.5,4.65]
[1765332425768,1.3698,3295.6,3295.5,4.65]
[1765332425969,1.3698,3295.6,3295.5,3.9402]
[1765332426470,1.3698,3295.6,3295.5,4.65]
[1765332426962,1.62958171,3295.6,3295.5,4.65]
[1765332427167,1.8632,3295.5,3295.4,0.00351252]
[1765332427360,2.81459351,3295.5,3295.4,0.73911252]
[1765332427559,2.81459351,3295.5,3295.4,1.47371252]
[1765332429367,1.39299351,3295.5,3295.4,1.47371252]
[1765332429571,0.70138171,3295.5,3295.4,1.47371252]
[1765332429771,1.1305,3295.5,3295.4,1.47371252]
[1765332429972,2.12298171,3295.5,3295.4,1.47371252]
[1765332430267,1.39299351,3295.5,3295.4,1.47371252]
[1765332430468,0.4413,3296.0,3295.9,1.4702]
[1765332430666,1.8629,3296.0,3295.9,0.7356]
[1765332430866,0.6889,3295.7,3295.6,4.678]
[1765332431066,1.4216,3295.7,3295.6,4.678]
[1765332431267,2.37263938,3295.7,3295.6,4.678]
[1765332431474,0.69134689,3295.7,3295.6,4.678]
[1765332431768,1.8629,3296.0,3295.9,1.4702]
[1765332431961,1.4216,3295.7,3295.6,3.9434]
[1765332432166,2.37264661,3295.7,3295.6,0.7356]
[1765332432367,1.8632,3295.5,3295.4,1.47371252]
[1765332432566,1.8632,3295.5,3295.4,0.73911252]
[1765332432766,2.81424865,3295.5,3295.4,0.00351252]
[1765332432969,1.4216,3295.2,3295.1,0.00455297]
[1765332433267,1.68125899,3295.2,3295.1,0.00455297]
[1765332433462,2.37264865,3295.2,3295.1,0.00455297]
[1765332433666,2.37264865,3295.2,3295.1,0.74015297]
[1765332433864,2.37264865,3295.2,3295.1,1.47853931]
[1765332434067,2.37264865,3295.2,3295.1,0.74393931]
[1765332434277,2.37264865,3295.2,3295.1,1.47853931]
[1765332435571,0.69138966,3295.2,3295.1,1.47853931]
[1765332435884,0.95084653,3295.4,3295.3,1.4702]
[1765332437173,2.37244653,3295.4,3295.3,0.7356]
[1765332437373,1.4216,3295.2,3295.1,4.68633931]
[1765332437570,2.11298966,3295.2,3295.1,3.95173931]
[1765332437771,2.37239473,3295.2,3295.1,0.00833931]
[1765332437971,2.37239473,3295.2,3295.1,0.74393931]
[1765332438276,2.11298966,3295.2,3295.1,0.74393931]
[1765332439072,2.11298966,3295.2,3295.1,0.00833931]
[1765332439276,2.37235011,3295.2,3295.1,0.00833931]
[1765332440076,2.37235011,3295.2,3295.1,1.47853931]
[1765332440271,2.11298966,3295.2,3295.1,1.47853931]
[1765332440780,0.69138966,3295.2,3295.1,1.47853931]
[1765332440980,1.63963102,3295.4,3295.3,1.4702]
[1765332441378,0.95073102,3295.4,3295.3,1.4702]
[1765332442082,1.63963102,3295.4,3295.3,1.4702]
[1765332443583,2.37233102,3295.4,3295.3,1.4702]
[1765332443985,1.3859,3295.2,3295.1,0.00833931]
[1765332444186,2.07728966,3295.2,3295.1,0.00833931]
[1765332444587,2.07728966,3295.2,3295.1,0.69723931]
[1765332445085,2.07728966,3295.2,3295.1,0.00833931]
[1765332445687,2.07728966,3295.2,3295.1,1.44203931]
[1765332446188,2.07728966,3295.2,3295.1,0.69723931]
[1765332446687,2.07728966,3295.2,3295.1,1.44203931]
[1765332446886,2.07728966,3295.2,3295.1,0.69723931]
[1765332447087,2.07728966,3295.2,3295.1,1.44203931]
[1765332447388,2.07728966,3295.2,3295.1,0.69723931]
[1765332448482,0.4416,3295.5,3295.1,4.64983931]
[1765332448686,1.1218,3295.5,3295.4,1.4337]
[1765332448888,1.3859,3295.8,3295.7,1.4337]
[1765332449079,0.4413,3296.0,3295.8,1.4337]
[1765332449285,1.1215,3296.0,3295.9,1.4337]
[1765332449481,2.77730428,3296.0,3295.9,1.4337]
[1765332449678,2.77730428,3296.0,3295.9,0.6889]
[1765332450587,2.07160428,3296.0,3295.9,1.4337]
[1765332450784,1.39140428,3296.0,3295.9,1.4337]
[1765332450986,1.82530921,3296.5,3296.4,0.6889]
[1765332451186,0.6802,3296.1,3296.0,3.8967]
[1765332451385,0.6802,3295.6,3295.5,3.8967]
[1765332451692,0.4414,3296.0,3295.1,0.00833931]
[1765332451693,1.3859,3295.2,3295.1,0.00833931]
[1765332451990,0.4414,3294.5,3294.4,4.6415]
[1765332452585,1.8273,3295.0,3294.9,0.6889]
[1765332452785,2.51703553,3295.0,3294.9,0.69242147]
[1765332453189,2.51703553,3295.0,3294.9,0.00352147]
[1765332454586,0.4414,3295.0,3294.9,4.64502147]
[1765332454987,1.1216,3295.0,3294.9,1.43722147]
[1765332455788,1.8273,3295.0,3294.9,0.69242147]
[1765332456694,2.51745773,3295.0,3294.9,0.69242147]
[1765332456994,2.51745773,3295.0,3294.9,0.00352147]
[1765332457790,2.77683199,3295.0,3294.9,0.00352147]
[1765332458687,1.3859,3294.6,3294.5,3.2078]
[1765332459095,2.07605773,3294.6,3294.5,3.2078]
[1765332459791,1.8273,3295.0,3294.9,1.4337]
[1765332459994,2.7763402,3295.0,3294.9,1.4337]
[1765332460189,1.13116778,3295.0,3294.9,1.4337]
[1765332460387,3.21235297,3295.3,3295.2,1.4337]